fUST/lending_fUST_20250709
["ID","MTS","AMOUNT","RATE_DAILY","PERIOD"]
[370443544,1752021043153,-460.0,0.0002,2]
[370443546,1752021043162,-460.0,0.0002,2]
[370443548,1752021043172,-460.0,0.0002,2]
[370443550,1752021043181,-460.0,0.0002,2]
[370443552,1752021043191,-460.0,0.0002,2]
[370443554,1752021043201,-1350.58,0.0002,2]
[370443556,1752021043211,-470.04,0.0002,2]
[370443558,1752021043221,-460.0,0.0002,2]
[370443560,1752021043231,-9689.90033476,0.0002,5]
[370443564,1752021043242,-460.0,0.0002,2]
[370443566,1752021043252,-460.0,0.0002,2]
[370443567,1752021043261,-860.02,0.0002,2]
[370443570,1752021043271,-460.0,0.0002,2]
[370443572,1752021043280,-460.0,0.0002,2]
[370443574,1752021043290,-460.0,0.0002,2]
[370443576,1752021043300,-1225.51,0.0002,2]
[370443578,1752021043313,-594.76,0.0002,2]
[370443580,1752021043322,-1602.34,0.0002,2]
[370443583,1752021043331,-204.62,0.0002,2]
[370443585,1752021043340,-539.0,0.0002,2]
[370443588,1752021043350,-476.05,0.0002,2]
[370443591,1752021043359,-460.0,0.0002,2]
[370443594,1752021043369,-460.0,0.0002,2]
[370443599,1752021043378,-2698.7,0.0002,2]
[370443602,1752021043388,-1932.82,0.0002,2]
[370443604,1752021043397,-858.7,0.0002,2]
[370443606,1752021043407,-206.72417044,0.0002,2]
[370443608,1752021043417,-460.0,0.0002,2]
[370443610,1752021043426,-586.91,0.0002,2]
[370443612,1752021043436,-460.0,0.0002,2]
[370443614,1752021043445,-460.0,0.0002,2]
[370443616,1752021043455,-479.16,0.0002,2]
[370443618,1752021043464,-460.0,0.0002,2]
[370443620,1752021043473,-460.0,0.0002,2]
[370443622,1752021043482,-696.66,0.0002,2]
[370443624,1752021043491,-460.0,0.0002,2]
[370443626,1752021043501,-460.0,0.0002,2]
[370443628,1752021043511,-460.0,0.0002,2]
[370443630,1752021043521,-460.0,0.0002,2]
[370443632,1752021043531,-939.83,0.0002,2]
[370443634,1752021043540,-460.0,0.0002,2]
[370443636,1752021043550,-763.99,0.0002,2]
[370443638,1752021043559,-460.0,0.0002,2]
[370443641,1752021043569,-523.87,0.0002,2]
[370443643,1752021043579,-1011.07,0.0002,2]
[370443645,1752021043588,-2995.84,0.0002,2]
[370443647,1752021043597,-460.0,0.0002,2]
[370443649,1752021043607,-460.0,0.0002,2]
[370443651,1752021043616,-460.0,0.0002,2]
[370443653,1752021043625,-204.86283787,0.00020015,2]
[370443655,1752021043634,-207.4,0.00020034,2]
[370443657,1752021043644,-690.642,0.00020034,2]
[370443659,1752021043653,-500.0,0.00020034,2]
[370443661,1752021043662,-500.0,0.00020034,2]
[370443663,1752021043672,-500.0,0.00020034,2]
[370443665,1752021043681,-25000.0,0.00020034,2]
[370443667,1752021043690,-22683.72233151,0.00020034,2]
[370443669,1752021043700,-168.0,0.00020038,2]
[370443671,1752021043710,-650.0,0.00020048,2]
[370443673,1752021043719,-512.10269403,0.00020048,2]
[370443675,1752021043729,-500.0,0.00020048,2]
[370443677,1752021043738,-500.0,0.00020048,2]
[370443679,1752021043748,-500.91232149,0.00020048,2]
[370443682,1752021043758,-443.30882593,0.00020048,2]
[370443685,1752021043768,-257.31718571,0.00020048,2]
[370443687,1752021043777,-500.0,0.00020048,2]
[370443689,1752021043787,-500.0,0.00020048,2]
[370443691,1752021043796,-500.0,0.00020048,2]
[370443693,1752021043806,-500.0,0.00020048,2]
[370443695,1752021043815,-500.0,0.00020048,2]
[370443697,1752021043825,-491.04253568,0.00020048,2]
[370443699,1752021043834,-500.0,0.00020048,2]
[370443702,1752021043844,-500.0,0.00020048,2]
[370443704,1752021043854,-500.0,0.00020048,2]
[370443707,1752021043864,-500.0,0.00020048,2]
[370443709,1752021043874,-500.0,0.00020048,2]
[370443711,1752021043884,-500.0,0.00020048,2]
[370443714,1752021043894,-500.0,0.00020048,2]
[370443716,1752021043903,-500.0,0.00020048,2]
[370443718,1752021043914,-166.52473126,0.00020048,2]
[370443720,1752021043923,-500.0,0.00020048,2]
[370443722,1752021043934,-500.0,0.00020048,2]
[370443724,1752021043944,-500.0,0.00020048,2]
[370443726,1752021043954,-503.73119541,0.00020048,2]
[370443728,1752021043963,-500.0,0.00020048,2]
[370443730,1752021043972,-500.0,0.00020048,2]
[370443732,1752021043982,-500.0,0.00020056,2]
[370443734,1752021043991,-500.97963928,0.00020056,2]
[370443736,1752021044001,-290.74177825,0.00020056,2]
[370443738,1752021044010,-500.0,0.00020056,2]
[370443740,1752021044020,-500.0,0.00020059,2]
[370443742,1752021044029,-500.0,0.00020059,2]
[370443744,1752021044039,-196.99992622,0.00020059,2]
[370443746,1752021044048,-504.94786744,0.00020059,2]
[370443748,1752021044058,-716.195754,0.00020089,2]
[370443750,1752021044067,-742.6949969,0.00020144,2]
[370443752,1752021044077,-168.0,0.00020149,2]
[370443754,1752021044086,-313.29129361,0.00020174,2]
[370443756,1752021044096,-544.598914,0.00020187,2]
[370443759,1752021044106,-770.17471178,0.00020199,2]
[370443761,1752021044115,-798.67117612,0.00020254,2]
[370443763,1752021044125,-329591.52502,0.00020272,2]
[370443765,1752021044134,-460.0,0.00020273,2]
[370443767,1752021044143,-460.0,0.00020273,2]
[370443769,1752021044154,-460.0,0.00020273,2]
[370443771,1752021044163,-460.0,0.00020273,2]
[370443773,1752021044172,-460.0,0.00020273,2]
[370443775,1752021044182,-460.0,0.00020273,2]
[370443777,1752021044192,-460.0,0.00020273,2]
[370443779,1752021044201,-460.0,0.00020273,2]
[370443781,1752021044211,-460.0,0.00020273,2]
[370443783,1752021044221,-473.18,0.00020273,2]
[370443785,1752021044230,-460.0,0.00020273,2]
[370443787,1752021044240,-460.0,0.00020273,2]
[370443789,1752021044249,-460.0,0.00020273,2]
[370443791,1752021044259,-460.0,0.00020273,2]
[370443793,1752021044269,-460.0,0.00020273,2]
[370443795,1752021044279,-460.0,0.00020273,2]
[370443797,1752021044288,-460.0,0.00020273,2]
[370443799,1752021044299,-460.0,0.00020273,2]
[370443802,1752021044312,-460.0,0.00020273,2]
[370443804,1752021044321,-460.0,0.00020273,2]
[370443806,1752021044330,-460.0,0.00020273,2]
[370443808,1752021044342,-460.0,0.00020273,2]
[370443810,1752021044353,-460.0,0.00020273,2]
[370443812,1752021044363,-460.0,0.00020273,2]
[370443814,1752021044373,-465.82,0.00020273,2]
[370443817,1752021044383,-460.0,0.00020273,2]
[370443819,1752021044394,-460.0,0.00020273,2]
[370443821,1752021044404,-460.0,0.00020273,2]
[370443823,1752021044414,-311.37302137,0.00020273,2]
[370443825,1752021044423,-460.0,0.00020273,2]
[370443827,1752021044432,-460.0,0.00020273,2]
[370443829,1752021044444,-460.0,0.00020273,2]
[370443831,1752021044454,-460.0,0.00020273,2]
[370443833,1752021044463,-460.0,0.00020273,2]
[370443835,1752021044473,-460.0,0.00020273,2]
[370443837,1752021044484,-522.68,0.00020273,2]
[370443838,1752021044494,-778.49,0.00020273,2]
[370443839,1752021044503,-460.0,0.00020273,2]
[370443840,1752021044512,-583.83,0.00020273,2]
[370443841,1752021044521,-460.0,0.00020273,2]
[370443842,1752021044531,-460.0,0.00020273,2]
[370443843,1752021044540,-460.0,0.00020273,2]
[370443844,1752021044549,-880.12,0.00020273,2]
[370443845,1752021044558,-1463.54,0.00020273,2]
[370443846,1752021044568,-553.54715124,0.00020273,2]
[370443847,1752021044578,-460.0,0.00020273,2]
[370443848,1752021044588,-518.38,0.00020273,2]
[370443849,1752021044597,-460.0,0.00020273,2]
[370443850,1752021044608,-460.0,0.00020273,2]
[370443851,1752021044618,-460.0,0.00020273,2]
[370443852,1752021044627,-460.0,0.00020273,2]
[370443853,1752021044637,-460.0,0.00020273,2]
[370443854,1752021044646,-460.0,0.00020273,2]
[370443855,1752021044655,-369.92683422,0.00020273,2]
[370443856,1752021044665,-460.0,0.00020273,2]
[370443857,1752021044674,-460.0,0.00020273,2]
[370443858,1752021044683,-460.0,0.00020273,2]
[370443859,1752021044693,-460.0,0.00020273,2]
[370443860,1752021044702,-925.41,0.00020273,2]
[370443861,1752021044712,-670.89,0.00020273,2]
[370443862,1752021044722,-498.65,0.00020273,2]
[370443863,1752021044731,-460.0,0.00020273,2]
[370443864,1752021044741,-460.0,0.00020273,2]
[370443865,1752021044751,-2118.13,0.00020273,2]
[370443866,1752021044760,-1422.85,0.00020273,2]
[370443867,1752021044770,-460.0,0.00020273,2]
[370443869,1752021044780,-460.0,0.00020273,2]
[370443871,1752021044790,-460.0,0.00020273,2]
[370443873,1752021044800,-454.99788546,0.00020273,2]
[370443875,1752021044810,-460.0,0.00020273,2]
[370443877,1752021044819,-460.0,0.00020273,2]
[370443879,1752021044829,-460.0,0.00020273,2]
[370443881,1752021044839,-1350.58,0.00020273,2]
[370443883,1752021044849,-470.04,0.00020273,2]
[370443900,1752021044988,-460.0,0.00020273,2]
[370443902,1752021044999,-460.0,0.00020273,2]
[370443904,1752021045009,-460.0,0.00020273,2]
[370443906,1752021045019,-860.02,0.00020273,2]
[370443908,1752021045029,-460.0,0.00020273,2]
[370443910,1752021045038,-460.0,0.00020273,2]
[370443912,1752021045047,-460.0,0.00020273,2]
[370443914,1752021045057,-1225.51,0.00020273,2]
[370443916,1752021045067,-594.76,0.00020273,2]
[370443918,1752021045077,-1602.34,0.00020273,2]
[370443920,1752021045086,-476.05,0.00020273,2]
[370443922,1752021045097,-460.0,0.00020273,2]
[370443923,1752021045106,-460.0,0.00020273,2]
[370443925,1752021045116,-1932.82,0.00020273,2]
[370443928,1752021045127,-2698.7,0.00020273,2]
[370443929,1752021045136,-858.7,0.00020273,2]
[370443931,1752021045146,-460.0,0.00020273,2]
[370443933,1752021045155,-586.91,0.00020273,2]
[370443935,1752021045165,-460.0,0.00020273,2]
[370443937,1752021045174,-460.0,0.00020273,2]
[370443939,1752021045183,-460.0,0.00020273,2]
[370443941,1752021045192,-460.0,0.00020273,2]
[370443943,1752021045202,-696.66,0.00020273,2]
[370443945,1752021045211,-460.0,0.00020273,2]
[370443947,1752021045220,-460.0,0.00020273,2]
[370443949,1752021045230,-460.0,0.00020273,2]
[370443951,1752021045239,-460.0,0.00020273,2]
[370443953,1752021045248,-939.83,0.00020273,2]
[370443955,1752021045257,-763.99,0.00020273,2]
[370443957,1752021045267,-460.0,0.00020273,2]
[370443959,1752021045276,-1011.07,0.00020273,2]
[370443961,1752021045285,-523.87,0.00020273,2]
[370443963,1752021045294,-2995.84,0.00020273,2]
[370443965,1752021045303,-460.0,0.00020273,2]
[370443967,1752021045315,-828.22200964,0.00020309,2]
[370443969,1752021045324,-300.0,0.00020326,2]
[370443971,1752021045333,-178.372249,0.00020345,2]
[370443973,1752021045343,-858.86622399,0.00020364,2]
[370443975,1752021045353,-151.0,0.000204,3]
[370443977,1752021045362,-890.64427428,0.00020419,2]
[370443979,1752021045372,-168.0,0.0002052,2]
[370443980,1752021045382,-168.0,0.00020545,2]
[370443981,1752021045391,-460.0,0.00020547,2]
[370443983,1752021045400,-460.0,0.00020547,2]
[370443985,1752021045409,-460.0,0.00020547,2]
[370443987,1752021045418,-460.0,0.00020547,2]
[370443989,1752021045428,-473.18,0.00020547,2]
[370443991,1752021045437,-460.0,0.00020547,2]
[370443993,1752021045446,-460.0,0.00020547,2]
[370443995,1752021045456,-460.0,0.00020547,2]
[370443997,1752021045466,-460.0,0.00020547,2]
[370443999,1752021045475,-293.17,0.00020547,2]
[370444001,1752021045484,-460.0,0.00020547,2]
[370444003,1752021045494,-460.0,0.00020547,2]
[370444005,1752021045503,-460.0,0.00020547,2]
[370444007,1752021045512,-579.51,0.00020547,2]
[370444009,1752021045522,-204.51,0.00020547,2]
[370444011,1752021045532,-465.82,0.00020547,2]
[370444013,1752021045541,-460.0,0.00020547,2]
[370444015,1752021045551,-460.0,0.00020547,2]
[370444017,1752021045560,-460.0,0.00020547,2]
[370444019,1752021045569,-460.0,0.00020547,2]
[370444021,1752021045579,-460.0,0.00020547,2]
[370444023,1752021045588,-460.0,0.00020547,2]
[370444025,1752021045597,-460.0,0.00020547,2]
[370444026,1752021045607,-460.0,0.00020547,2]
[370444028,1752021045616,-522.68,0.00020547,2]
[370444030,1752021045625,-778.49,0.00020547,2]
[370444032,1752021045634,-460.0,0.00020547,2]
[370444034,1752021045644,-460.0,0.00020547,2]
[370444036,1752021045653,-460.0,0.00020547,2]
[370444038,1752021045663,-460.0,0.00020547,2]
[370444040,1752021045673,-880.12,0.00020547,2]
[370444042,1752021045683,-1463.54,0.00020547,2]
[370444044,1752021045692,-460.0,0.00020547,2]
[370444046,1752021045702,-518.38,0.00020547,2]
[370444048,1752021045711,-460.0,0.00020547,2]
[370444050,1752021045720,-460.0,0.00020547,2]
[370444052,1752021045730,-561.30505171,0.00020547,2]
[370444054,1752021045739,-460.0,0.00020547,2]
[370444056,1752021045749,-460.0,0.00020547,2]
[370444058,1752021045759,-460.0,0.00020547,2]
[370444060,1752021045769,-460.0,0.00020547,2]
[370444062,1752021045778,-460.0,0.00020547,2]
[370444064,1752021045787,-460.0,0.00020547,2]
[370444066,1752021045796,-460.0,0.00020547,2]
[370444068,1752021045806,-925.41,0.00020547,2]
[370444070,1752021045815,-670.89,0.00020547,2]
[370444072,1752021045825,-498.65,0.00020547,2]
[370444074,1752021045834,-460.0,0.00020547,2]
[370444076,1752021045845,-460.0,0.00020547,2]
[370444078,1752021045855,-2118.13,0.00020547,2]
[370444080,1752021045865,-1422.85,0.00020547,2]
[370444082,1752021045874,-460.0,0.00020547,2]
[370444084,1752021045883,-460.0,0.00020547,2]
[370444086,1752021045891,-460.0,0.00020547,2]
[370444088,1752021045900,-460.0,0.00020547,2]
[370444090,1752021045909,-460.0,0.00020547,2]
[370444092,1752021045919,-460.0,0.00020547,2]
[370444094,1752021045930,-1350.58,0.00020547,2]
[370444096,1752021045940,-470.04,0.00020547,2]
[370444098,1752021045949,-460.0,0.00020547,2]
[370444100,1752021045958,-460.0,0.00020547,2]
[370444102,1752021045968,-460.0,0.00020547,2]
[370444104,1752021045979,-860.02,0.00020547,2]
[370444106,1752021045989,-460.0,0.00020547,2]
[370444108,1752021045999,-528.86,0.00020547,2]
[370444110,1752021046008,-460.0,0.00020547,2]
[370444112,1752021046017,-1225.51,0.00020547,2]
[370444114,1752021046026,-594.76,0.00020547,2]
[370444116,1752021046036,-1602.34,0.00020547,2]
[370444118,1752021046045,-476.05,0.00020547,2]
[370444120,1752021046054,-460.0,0.00020547,2]
[370444122,1752021046064,-460.0,0.00020547,2]
[370444124,1752021046074,-1932.82,0.00020547,2]
[370444126,1752021046085,-2698.7,0.00020547,2]
[370444128,1752021046095,-858.7,0.00020547,2]
[370444130,1752021046104,-586.91,0.00020547,2]
[370444132,1752021046117,-460.0,0.00020547,2]
[370444134,1752021046126,-460.0,0.00020547,2]
[370444137,1752021046135,-460.0,0.00020547,2]
[370444139,1752021046144,-696.66,0.00020547,2]
[370444141,1752021046153,-460.0,0.00020547,2]
[370444143,1752021046162,-460.0,0.00020547,2]
[370444145,1752021046171,-460.0,0.00020547,2]
[370444147,1752021046180,-460.0,0.00020547,2]
[370444149,1752021046189,-939.83,0.00020547,2]
[370444151,1752021046199,-268.37376492,0.00020547,2]
[370444153,1752021046208,-763.99,0.00020547,2]
[370444155,1752021046217,-1011.07,0.00020547,2]
[370444157,1752021046226,-523.87,0.00020547,2]
[370444158,1752021046235,-2995.84,0.00020547,2]
[370444160,1752021046244,-500.0,0.00020576,2]
[370444161,1752021046254,-151.0,0.00020576,2]
[370444163,1752021046263,-151.0,0.00020576,2]
[370444165,1752021046272,-151.0,0.00020576,2]
[370444167,1752021046282,-151.0,0.00020576,2]
[370444169,1752021046291,-151.0,0.00020576,2]
[370444171,1752021046301,-151.0,0.00020576,2]
[370444173,1752021046314,-500.0,0.00020576,2]
[370444175,1752021046324,-500.0,0.00020576,2]
[370444177,1752021046333,-151.0,0.00020576,2]
[370444179,1752021046343,-151.59975329,0.00020576,2]
[370444181,1752021046353,-151.0,0.00020576,2]
[370444183,1752021046362,-151.0,0.00020576,2]
[370444185,1752021046371,-151.0,0.00020576,2]
[370444188,1752021046382,-151.0,0.00020576,2]
[370444190,1752021046392,-151.0,0.00020576,2]
[370444192,1752021046401,-201.99690245,0.00020576,2]
[370444194,1752021046410,-151.0,0.00020576,2]
[370444196,1752021046420,-151.0,0.00020576,2]
[370444198,1752021046429,-151.0,0.00020576,2]
[370444200,1752021046438,-151.0,0.00020576,2]
[370444202,1752021046448,-151.0,0.00020576,2]
[370444204,1752021046458,-151.0,0.00020576,2]
[370444206,1752021046467,-25000.0,0.00020582,2]
[370444208,1752021046477,-313.29129361,0.00020584,2]
[370444210,1752021046486,-168.0,0.00020588,2]
[370444212,1752021046496,-3243.53006104,0.00020589,2]
[370444214,1752021046505,-1000.0,0.00020596,2]
[370444216,1752021046514,-1000.0,0.00020596,2]
[370444217,1752021046523,-1000.0,0.00020596,2]
[370444219,1752021046533,-1000.0,0.00020596,2]
[370444221,1752021046542,-1000.0,0.00020596,2]
[370444223,1752021046551,-1000.0,0.00020596,2]
[370444225,1752021046561,-356.04404209,0.00020596,2]
[370444227,1752021046570,-501.55669578,0.00020596,2]
[370444229,1752021046579,-814.5323604,0.00020596,2]
[370444231,1752021046588,-1000.0,0.00020596,2]
[370444233,1752021046597,-1000.0,0.00020596,2]
[370444235,1752021046607,-151.0,0.000206,3]
[370444237,1752021046616,-500.0,0.00020603,2]
[370444239,1752021046625,-151.0,0.00020603,2]
[370444241,1752021046635,-151.0,0.00020603,2]
[370444243,1752021046644,-151.0,0.00020603,2]
[370444246,1752021046654,-151.0,0.00020603,2]
[370444249,1752021046664,-198.0,0.00020603,2]
[370444252,1752021046673,-151.0,0.00020603,2]
[370444255,1752021046683,-588.40864838,0.00020603,2]
[370444258,1752021046692,-500.0,0.00020603,2]
[370444261,1752021046702,-151.0,0.00020603,2]
[370444264,1752021046711,-151.0,0.00020603,2]
[370444267,1752021046721,-151.0,0.00020603,2]
[370444268,1752021046730,-151.0,0.00020603,2]
[370444270,1752021046740,-151.0,0.00020603,2]
[370444271,1752021046749,-151.0,0.00020603,2]
[370444273,1752021046759,-151.0,0.00020603,2]
[370444275,1752021046768,-151.0,0.00020603,2]
[370444276,1752021046778,-198.0,0.00020603,2]
[370444277,1752021046787,-292.0,0.00020603,2]
[370444278,1752021046796,-151.0,0.00020603,2]
[370444279,1752021046805,-500.0,0.00020604,2]
[370444280,1752021046815,-500.0,0.00020604,2]
[370444281,1752021046824,-8000.0,0.00020626,2]
[370444282,1752021046834,-5000.0,0.00020626,2]
[370444283,1752021046843,-500.0,0.00020631,2]
[370444285,1752021046852,-151.0,0.00020631,2]
[370444287,1752021046862,-198.0,0.00020631,2]
[370444289,1752021046872,-151.0,0.00020631,2]
[370444291,1752021046881,-151.0,0.00020631,2]
[370444293,1752021046890,-151.0,0.00020631,2]
[370444295,1752021046899,-500.0,0.00020631,2]
[370444297,1752021046908,-151.0,0.00020631,2]
[370444299,1752021046918,-199.19616753,0.00020631,2]
[370444301,1752021046927,-151.0,0.00020631,2]
[370444303,1752021046936,-151.0,0.00020631,2]
[370444305,1752021046946,-151.0,0.00020631,2]
[370444307,1752021046955,-151.0,0.00020631,2]
[370444309,1752021046964,-151.0,0.00020631,2]
[370444311,1752021046974,-151.0,0.00020631,2]
[370444313,1752021046983,-198.72056785,0.00020631,2]
[370444314,1752021046993,-500.0,0.00020658,2]
[370444315,1752021047002,-264.95655386,0.00020658,2]
[370444316,1752021047012,-151.0,0.00020658,2]
[370444317,1752021047021,-151.0,0.00020658,2]
[370444318,1752021047031,-194.68294943,0.00020658,2]
[370444319,1752021047040,-246.8883299,0.00020658,2]
[370444320,1752021047049,-175.6042664,0.00020658,2]
[370444321,1752021047059,-151.0,0.00020658,2]
[370444322,1752021047067,-198.0,0.00020658,2]
[370444323,1752021047077,-151.0,0.00020658,2]
[370444324,1752021047086,-246.04138386,0.00020658,2]
[370444325,1752021047095,-281.44887311,0.00020658,2]
[370444326,1752021047104,-198.0,0.00020658,2]
[370444327,1752021047114,-168.0,0.00020663,2]
[370444328,1752021047123,-500.0,0.00020686,2]
[370444329,1752021047132,-151.0,0.00020686,2]
[370444330,1752021047142,-151.0,0.00020686,2]
[370444331,1752021047151,-259.98735537,0.00020686,2]
[370444332,1752021047160,-151.0,0.00020686,2]
[370444333,1752021047170,-168.0,0.00020696,2]
[370444334,1752021047179,-500.0,0.00020713,2]
[370444335,1752021047188,-245.0,0.00020713,2]
[370444336,1752021047197,-245.0,0.00020713,2]
[370444337,1752021047206,-245.0,0.00020713,2]
[370444338,1752021047215,-500.0,0.0002074,2]
[370444339,1752021047225,-715.419,0.00020764,2]
[370444340,1752021047234,-500.0,0.00020768,2]
[370444341,1752021047244,-500.0,0.00020795,2]
[370444342,1752021047254,-216.9213308,0.00020821,2]
[370444343,1752021047263,-460.0,0.00020821,2]
[370444344,1752021047272,-460.0,0.00020821,2]
[370444345,1752021047281,-473.18,0.00020821,2]
[370444346,1752021047290,-460.0,0.00020821,2]
[370444347,1752021047300,-460.0,0.00020821,2]
[370444348,1752021047314,-460.0,0.00020821,2]
[370444349,1752021047323,-460.0,0.00020821,2]
[370444350,1752021047332,-460.0,0.00020821,2]
[370444351,1752021047342,-465.82,0.00020821,2]
[370444352,1752021047352,-460.0,0.00020821,2]
[370444353,1752021047361,-460.0,0.00020821,2]
[370444354,1752021047370,-460.0,0.00020821,2]
[370444355,1752021047379,-460.0,0.00020821,2]
[370444356,1752021047389,-489.06,0.00020821,2]
[370444357,1752021047399,-460.0,0.00020821,2]
[370444358,1752021047408,-460.0,0.00020821,2]
[370444359,1752021047418,-522.68,0.00020821,2]
[370444360,1752021047429,-778.49,0.00020821,2]
[370444361,1752021047438,-460.0,0.00020821,2]
[370444362,1752021047448,-460.0,0.00020821,2]
[370444363,1752021047458,-460.0,0.00020821,2]
[370444364,1752021047468,-880.12,0.00020821,2]
[370444365,1752021047477,-460.0,0.00020821,2]
[370444366,1752021047487,-1463.54,0.00020821,2]
[370444367,1752021047496,-460.0,0.00020821,2]
[370444368,1752021047506,-518.38,0.00020821,2]
[370444369,1752021047515,-460.0,0.00020821,2]
[370444370,1752021047526,-460.0,0.00020821,2]
[370444371,1752021047536,-460.0,0.00020821,2]
[370444372,1752021047545,-460.0,0.00020821,2]
[370444373,1752021047555,-460.0,0.00020821,2]
[370444374,1752021047564,-460.0,0.00020821,2]
[370444375,1752021047574,-460.0,0.00020821,2]
[370444376,1752021047584,-273.46091655,0.00020821,2]
[370444606,1752021093432,200.0,0.00024603,120]
[370444608,1752021151172,200.0,0.00026203,120]
[370444610,1752021211041,200.0,0.00026951,120]
[370444611,1752021271930,200.0,0.00026509,120]
[370444613,1752021331388,200.0,0.00025918,120]
[370444614,1752021392076,200.0,0.00024409,120]
[370444615,1752021451286,200.0,0.00024313,120]
[370444616,1752021510748,200.0,0.0002637,120]
[370444617,1752021570744,200.0,0.00024461,120]
[370444619,1752021630523,200.0,0.00024975,120]
[370444620,1752021690755,200.0,0.00025508,120]
[370444621,1752021700715,523.453123,0.00013699,2]
[370444623,1752021750770,200.0,0.00025596,120]
[370444625,1752021810876,200.0,0.00025284,120]
[370444679,1752022232082,-300.0,0.00019177,2]
[370444680,1752022232092,-460.0,0.00019178,2]
[370444681,1752022232102,-460.0,0.00019178,2]
[370444682,1752022232112,-472.0,0.00019178,2]
[370444683,1752022232121,-268.8395558,0.00019178,2]
[370444684,1752022232131,-460.0,0.00019178,2]
[370444685,1752022232141,-87.39805155,0.00019178,2]
[370444686,1752022232152,-372.60194845,0.00019178,2]
[370444687,1752022232162,-460.0,0.00019178,2]
[370444688,1752022232172,-460.0,0.00019178,2]
[370444689,1752022232181,-460.0,0.00019178,2]
[370444690,1752022232195,-460.0,0.00019178,2]
[370444691,1752022232204,-500.0,0.00019178,2]
[370444692,1752022232214,-465.49882219,0.00019178,2]
[370444694,1752022232223,-500.0,0.00019178,2]
[370444695,1752022232234,-460.0,0.00019178,2]
[370444697,1752022232243,-168.25615889,0.00019178,2]
[370444701,1752022232259,-291.74384111,0.00019178,2]
[370444704,1752022232268,-460.0,0.00019178,2]
[370444708,1752022232278,-460.0,0.00019178,2]
[370444710,1752022232288,-460.0,0.00019178,2]
[370444712,1752022232298,-464.2,0.00019178,2]
[370444714,1752022232307,-440.13325765,0.00019178,2]
[370444750,1752022237883,-59.86674235,0.00019178,2]
[370444751,1752022237893,-460.0,0.00019178,2]
[370444752,1752022237903,-460.0,0.00019178,2]
[370444753,1752022237912,-460.0,0.00019178,2]
[370444754,1752022237922,-394.66795921,0.00019178,2]
[370444755,1752022237931,-507.62193998,0.00019178,2]
[370444756,1752022237941,-460.0,0.00019178,2]
[370444757,1752022237950,-460.0,0.00019178,2]
[370444758,1752022237959,-493.44607357,0.00019178,2]
[370444759,1752022237969,-460.0,0.00019178,2]
[370444760,1752022237978,-460.0,0.00019178,2]
[370444761,1752022237988,-460.0,0.00019178,2]
[370444762,1752022237997,-460.0,0.00019178,2]